[Event "Early-Titled-Tuesday-Blitz-April-23-2024"]
[Site "Chess.com"]
[Date "2024.04.23"]
[Round "1"]
[White "AryanTari"]
[Black "CristianS27"]
[Result "1-0"]
[WhiteElo "2953"]
[BlackElo "2534"]
[TimeControl "180+1"]
[EndTime "8:06:38 PDT"]
[Termination "AryanTari won on time"]

1. e4 {[%clk 0:02:58.6]} 1... e5 {[%clk 0:02:55.6]} 2. Nf3 {[%clk 0:02:58.6]}
2... Nc6 {[%clk 0:02:55.3]} 3. Bb5 {[%clk 0:02:58.6]} 3... a6 {[%clk 0:02:55.9]}
4. Ba4 {[%clk 0:02:58.5]} 4... Nf6 {[%clk 0:02:56.1]} 5. Nc3 {[%clk 0:02:58.1]}
5... b5 {[%clk 0:02:53.9]} 6. Bb3 {[%clk 0:02:54.1]} 6... Bc5 {[%clk 0:02:53.7]}
7. a4 {[%clk 0:02:53.9]} 7... Rb8 {[%clk 0:02:53.3]} 8. O-O {[%clk 0:02:52.5]}
8... d6 {[%clk 0:02:52.3]} 9. Nd5 {[%clk 0:02:43.5]} 9... O-O {[%clk 0:02:42]}
10. d4 {[%clk 0:02:13.6]} 10... exd4 {[%clk 0:01:58.1]} 11. Bg5 {[%clk
0:02:13.3]} 11... Bg4 {[%clk 0:01:54.7]} 12. h3 {[%clk 0:02:13.1]} 12... Bh5
{[%clk 0:01:53.2]} 13. axb5 {[%clk 0:02:04.2]} 13... axb5 {[%clk 0:01:52.8]} 14.
g4 {[%clk 0:01:51.1]} 14... Bg6 {[%clk 0:01:51.6]} 15. Ra6 {[%clk 0:01:50.9]}
15... Nb4 {[%clk 0:01:45.2]} 16. Bxf6 {[%clk 0:01:42.7]} 16... gxf6 {[%clk
0:01:42.3]} 17. Nxb4 {[%clk 0:01:43]} 17... Bxb4 {[%clk 0:01:43.2]} 18. Qxd4
{[%clk 0:01:38.5]} 18... Bc5 {[%clk 0:01:38.9]} 19. Qd3 {[%clk 0:01:38.6]} 19...
Re8 {[%clk 0:01:29.3]} 20. Bd5 {[%clk 0:01:37.2]} 20... h5 {[%clk 0:01:14.7]}
21. Nh4 {[%clk 0:01:35.1]} 21... Kg7 {[%clk 0:01:06.9]} 22. gxh5 {[%clk
0:01:27.1]} 22... Bh7 {[%clk 0:00:40.4]} 23. Kh2 {[%clk 0:01:11]} 23... Re5
{[%clk 0:00:37.7]} 24. Rg1+ {[%clk 0:00:47.3]} 24... Kh8 {[%clk 0:00:37.5]} 25.
Bxf7 {[%clk 0:00:46.6]} 25... Bxe4 {[%clk 0:00:20.2]} 26. Ng6+ {[%clk
0:00:45.4]} 26... Kh7 {[%clk 0:00:15.7]} 27. Qd2 {[%clk 0:00:43.7]} 27... Rf5
{[%clk 0:00:08.3]} 28. Nf8+ {[%clk 0:00:41.6]} 28... Qxf8 {[%clk 0:00:06]} 29.
Bg6+ {[%clk 0:00:42.1]} 29... Kh8 {[%clk 0:00:02.5]} 30. Bxf5 {[%clk 0:00:43]}
30... Bxf5 {[%clk 0:00:03.1]} 31. Qd5 {[%clk 0:00:42.9]} 31... Qc8 {[%clk
0:00:01.9]} 32. Qf7 {[%clk 0:00:41]} 1-0

[Event "Early-Titled-Tuesday-Blitz-April-23-2024"]
[Site "Chess.com"]
[Date "2024.04.23"]
[Round "1"]
[White "FuenfgegenWilly"]
[Black "Byniolus"]
[Result "0-1"]
[WhiteElo "2480"]
[BlackElo "2845"]
[TimeControl "180+1"]
[EndTime "8:06:39 PDT"]
[Termination "Byniolus won by resignation"]

1. d4 {[%clk 0:03:00.9]} 1... d6 {[%clk 0:02:59.9]} 2. e4 {[%clk 0:03:00.2]}
2... Nf6 {[%clk 0:02:59.8]} 3. Nc3 {[%clk 0:02:59.4]} 3... c6 {[%clk 0:03:00.2]}
4. g3 {[%clk 0:02:54.4]} 4... b5 {[%clk 0:02:59.7]} 5. Bg2 {[%clk 0:02:52.4]}
5... e5 {[%clk 0:02:59.6]} 6. Nge2 {[%clk 0:02:49.3]} 6... Nbd7 {[%clk
0:02:59.2]} 7. h3 {[%clk 0:02:48.3]} 7... Be7 {[%clk 0:02:59.2]} 8. Be3 {[%clk
0:02:47.5]} 8... O-O {[%clk 0:02:59.2]} 9. O-O {[%clk 0:02:47.5]} 9... Bb7
{[%clk 0:02:57.6]} 10. Kh2 {[%clk 0:02:40.9]} 10... Re8 {[%clk 0:02:53.8]} 11.
f4 {[%clk 0:02:30.1]} 11... Bf8 {[%clk 0:02:52]} 12. dxe5 {[%clk 0:02:25.5]}
12... dxe5 {[%clk 0:02:52]} 13. f5 {[%clk 0:02:25.8]} 13... h6 {[%clk
0:02:48.4]} 14. g4 {[%clk 0:01:56.6]} 14... Bc5 {[%clk 0:02:45.4]} 15. Qd2
{[%clk 0:01:56.3]} 15... Bxe3 {[%clk 0:02:38.8]} 16. Qxe3 {[%clk 0:01:57.2]}
16... Qb6 {[%clk 0:02:39.4]} 17. Qg3 {[%clk 0:01:51.3]} 17... b4 {[%clk
0:02:30.2]} 18. Na4 {[%clk 0:01:48.4]} 18... Qb5 {[%clk 0:02:28.3]} 19. g5
{[%clk 0:01:22.5]} 19... hxg5 {[%clk 0:02:25.3]} 20. Qxg5 {[%clk 0:01:18.9]}
20... Qxe2 {[%clk 0:02:19.1]} 21. Rf3 {[%clk 0:01:18.3]} 21... Nxe4 {[%clk
0:01:57]} 22. Qh4 {[%clk 0:01:17.4]} 22... Ndf6 {[%clk 0:01:51.4]} 23. Re1
{[%clk 0:01:02.7]} 23... Qxc2 {[%clk 0:01:49.1]} 24. Rb3 {[%clk 0:01:03.6]}
24... c5 {[%clk 0:01:42]} 25. Nxc5 {[%clk 0:01:03.7]} 25... Nxc5 {[%clk
0:01:37.5]} 26. Rg3 {[%clk 0:01:03.4]} 26... Ncd7 {[%clk 0:00:57.5]} 27. Qg5
{[%clk 0:00:55.8]} 27... Kf8 {[%clk 0:00:52.6]} 28. Qxg7+ {[%clk 0:00:49]} 28...
Ke7 {[%clk 0:00:53]} 29. Rg6 {[%clk 0:00:46.7]} 29... Be4 {[%clk 0:00:31]} 30.
Kg1 {[%clk 0:00:24.6]} 30... Rg8 {[%clk 0:00:29.2]} 31. Qh6 {[%clk 0:00:12.4]}
31... Rxg6 {[%clk 0:00:27.3]} 0-1

[Event "Early-Titled-Tuesday-Blitz-April-23-2024"]
[Site "Chess.com"]
[Date "2024.04.23"]
[Round "1"]
[White "luckyswitchback"]
[Black "LifeIsAllAboutChess23"]
[Result "1-0"]
[WhiteElo "2704"]
[BlackElo "2384"]
[TimeControl "180+1"]
[EndTime "8:06:39 PDT"]
[Termination "luckyswitchback won by resignation"]

1. e4 {[%clk 0:03:00.9]} 1... c6 {[%clk 0:02:59.7]} 2. d4 {[%clk 0:03:00.5]}
2... d5 {[%clk 0:03:00]} 3. e5 {[%clk 0:03:00.9]} 3... Bf5 {[%clk 0:02:59.1]} 4.
h4 {[%clk 0:03:01.4]} 4... h5 {[%clk 0:02:53.4]} 5. c4 {[%clk 0:03:01.3]} 5...
e6 {[%clk 0:02:52.7]} 6. Nc3 {[%clk 0:03:01.1]} 6... Ne7 {[%clk 0:02:51.2]} 7.
Nge2 {[%clk 0:02:55.2]} 7... Nd7 {[%clk 0:02:50.3]} 8. Ng3 {[%clk 0:02:55.2]}
8... Bg6 {[%clk 0:02:50.4]} 9. Bg5 {[%clk 0:02:55]} 9... Qb6 {[%clk 0:02:49.3]}
10. Rc1 {[%clk 0:02:54.4]} 10... Qxb2 {[%clk 0:02:48.7]} 11. Bd3 {[%clk
0:02:51.1]} 11... Bxd3 {[%clk 0:02:44.5]} 12. Qxd3 {[%clk 0:02:52]} 12... dxc4
{[%clk 0:02:44.6]} 13. Qxc4 {[%clk 0:02:51.9]} 13... Nd5 {[%clk 0:02:44.7]} 14.
Nxd5 {[%clk 0:02:46.3]} 14... exd5 {[%clk 0:02:43.1]} 15. Qd3 {[%clk 0:02:45.1]}
15... Bb4+ {[%clk 0:02:24.8]} 16. Kf1 {[%clk 0:02:44.8]} 16... Qxa2 {[%clk
0:02:24.9]} 17. Qf5 {[%clk 0:02:01.5]} 17... Nf8 {[%clk 0:02:18.9]} 18. Rh3
{[%clk 0:01:50]} 18... Ne6 {[%clk 0:02:15]} 19. Qd3 {[%clk 0:01:37.5]} 19... Qa6
{[%clk 0:02:13.5]} 20. Qxa6 {[%clk 0:01:29.2]} 20... bxa6 {[%clk 0:02:14.4]} 21.
Rxc6 {[%clk 0:01:13.8]} 21... a5 {[%clk 0:02:14.6]} 22. Nf5 {[%clk 0:01:11.3]}
22... Kd7 {[%clk 0:02:10]} 23. Rc2 {[%clk 0:01:00.7]} 23... Rhc8 {[%clk
0:02:09.6]} 24. Ra2 {[%clk 0:00:56.2]} 24... Rc6 {[%clk 0:01:56.9]} 25. Rf3
{[%clk 0:00:56]} 25... Ke8 {[%clk 0:01:49.7]} 26. g3 {[%clk 0:00:50.3]} 26...
Rd8 {[%clk 0:01:47.5]} 27. Rd3 {[%clk 0:00:46.9]} 27... Rdc8 {[%clk 0:01:46.7]}
28. Kg2 {[%clk 0:00:42.1]} 28... Rc2 {[%clk 0:01:44.5]} 29. Rxc2 {[%clk
0:00:27]} 29... Rxc2 {[%clk 0:01:44]} 30. Ne3 {[%clk 0:00:27.5]} 30... Nc7
{[%clk 0:01:34.8]} 31. Nxc2 {[%clk 0:00:27]} 31... Kd7 {[%clk 0:01:26.2]} 32.
Bd2 {[%clk 0:00:24.9]} 32... Kc6 {[%clk 0:01:25.2]} 33. Bxb4 {[%clk 0:00:23.9]}
33... axb4 {[%clk 0:01:24.4]} 34. Nxb4+ {[%clk 0:00:24.8]} 34... Kb5 {[%clk
0:01:24.9]} 35. Rc3 {[%clk 0:00:24.9]} 35... Ne6 {[%clk 0:01:19.6]} 36. Nxd5
{[%clk 0:00:25.1]} 36... Nxd4 {[%clk 0:01:18.9]} 37. Rc7 {[%clk 0:00:24.1]}
37... a5 {[%clk 0:01:18.5]} 38. Rxf7 {[%clk 0:00:22.8]} 38... Ne6 {[%clk
0:01:13.6]} 39. Nc7+ {[%clk 0:00:21.3]} 39... Nxc7 {[%clk 0:01:12.1]} 40. Rxc7
{[%clk 0:00:22.2]} 40... a4 {[%clk 0:01:11.7]} 41. Ra7 {[%clk 0:00:21.8]} 41...
Kc6 {[%clk 0:01:06]} 42. Rxa4 {[%clk 0:00:21.2]} 42... Kd5 {[%clk 0:01:05.8]}
43. Re4 {[%clk 0:00:20.9]} 43... Ke6 {[%clk 0:01:05.8]} 44. f4 {[%clk
0:00:21.1]} 44... g6 {[%clk 0:01:05.5]} 45. Re1 {[%clk 0:00:22]} 45... Ke7
{[%clk 0:01:04.9]} 46. e6 {[%clk 0:00:22.3]} 46... Ke8 {[%clk 0:01:04.4]} 47. e7
{[%clk 0:00:22.8]} 1-0

[Event "Early-Titled-Tuesday-Blitz-April-23-2024"]
[Site "Chess.com"]
[Date "2024.04.23"]
[Round "1"]
[White "Pasmendjambvirgulptipon98"]
[Black "Aslanov_Umid"]
[Result "0-1"]
[WhiteElo "2324"]
[BlackElo "2643"]
[TimeControl "180+1"]
[EndTime "8:06:43 PDT"]
[Termination "Aslanov_Umid won on time"]

1. Nf3 {[%clk 0:03:00.9]} 1... d5 {[%clk 0:03:00.2]} 2. g3 {[%clk 0:03:00.6]}
2... c6 {[%clk 0:03:00.5]} 3. Bg2 {[%clk 0:03:01.3]} 3... Nf6 {[%clk 0:03:01]}
4. O-O {[%clk 0:03:01.9]} 4... Bg4 {[%clk 0:03:01.6]} 5. Ne5 {[%clk 0:03:00.9]}
5... Bh5 {[%clk 0:03:01]} 6. d4 {[%clk 0:02:59.2]} 6... Nbd7 {[%clk 0:03:01.6]}
7. Bf4 {[%clk 0:02:52]} 7... e6 {[%clk 0:02:59.9]} 8. c4 {[%clk 0:02:50.7]} 8...
Be7 {[%clk 0:02:56.6]} 9. Nc3 {[%clk 0:02:46.4]} 9... O-O {[%clk 0:02:53.6]} 10.
Qb3 {[%clk 0:02:33.2]} 10... Qb6 {[%clk 0:02:51.2]} 11. c5 {[%clk 0:02:33.1]}
11... Qa6 {[%clk 0:02:45.9]} 12. Rfe1 {[%clk 0:02:28.7]} 12... Nxe5 {[%clk
0:02:36.3]} 13. Bxe5 {[%clk 0:02:27]} 13... Nd7 {[%clk 0:02:36.5]} 14. Bf4
{[%clk 0:02:10.6]} 14... b6 {[%clk 0:02:35.6]} 15. e4 {[%clk 0:01:47.7]} 15...
Bf6 {[%clk 0:01:59]} 16. Bd6 {[%clk 0:01:33.7]} 16... Rfc8 {[%clk 0:01:45.3]}
17. e5 {[%clk 0:01:32.5]} 17... Bd8 {[%clk 0:01:45.3]} 18. Bf1 {[%clk
0:01:25.4]} 18... Qa5 {[%clk 0:01:36.1]} 19. cxb6 {[%clk 0:01:19.4]} 19... Qxb6
{[%clk 0:01:25.7]} 20. Qa3 {[%clk 0:01:09.5]} 20... Qxd4 {[%clk 0:01:19.4]} 21.
Ba6 {[%clk 0:00:57.3]} 21... Bb6 {[%clk 0:01:18.4]} 22. Rf1 {[%clk 0:00:51.6]}
22... Re8 {[%clk 0:01:14.5]} 23. Bb7 {[%clk 0:00:51]} 23... Rad8 {[%clk
0:00:58.9]} 24. Bxc6 {[%clk 0:00:50]} 24... Bf3 {[%clk 0:00:56.5]} 25. Nb5
{[%clk 0:00:50.2]} 25... Qg4 {[%clk 0:00:55.3]} 26. h3 {[%clk 0:00:42.8]} 26...
Qh5 {[%clk 0:00:49.5]} 27. Nc7 {[%clk 0:00:36.8]} 27... Bc5 {[%clk 0:00:36.2]}
28. Bxc5 {[%clk 0:00:26.8]} 28... Nxe5 {[%clk 0:00:36.7]} 29. h4 {[%clk
0:00:03.9]} 29... Qg4 {[%clk 0:00:36.5]} 30. Nxe8 {[%clk 0:00:01.5]} 30... Qh3
{[%clk 0:00:35.4]} 0-1

[Event "Early-Titled-Tuesday-Blitz-April-23-2024"]
[Site "Chess.com"]
[Date "2024.04.23"]
[Round "1"]
[White "MVM2008"]
[Black "Suleyman_Chess06"]
[Result "1-0"]
[WhiteElo "2495"]
[BlackElo "2826"]
[TimeControl "180+1"]
[EndTime "8:06:46 PDT"]
[Termination "MVM2008 won by resignation"]

1. e4 {[%clk 0:03:00.9]} 1... e6 {[%clk 0:03:00]} 2. d4 {[%clk 0:02:58.9]} 2...
d5 {[%clk 0:03:00.6]} 3. Nd2 {[%clk 0:02:59.4]} 3... Be7 {[%clk 0:02:58.9]} 4.
Ngf3 {[%clk 0:02:58.8]} 4... Nf6 {[%clk 0:02:59.2]} 5. e5 {[%clk 0:02:58.8]}
5... Nfd7 {[%clk 0:02:59.8]} 6. Bd3 {[%clk 0:02:59.1]} 6... c5 {[%clk
0:03:00.5]} 7. c3 {[%clk 0:02:59.4]} 7... Nc6 {[%clk 0:03:01.2]} 8. O-O {[%clk
0:02:59.2]} 8... Qb6 {[%clk 0:03:01.9]} 9. a3 {[%clk 0:02:54.5]} 9... O-O {[%clk
0:03:00.9]} 10. h3 {[%clk 0:02:51.7]} 10... a5 {[%clk 0:02:57.2]} 11. Qe2 {[%clk
0:02:47.6]} 11... a4 {[%clk 0:02:52.9]} 12. Re1 {[%clk 0:02:44.6]} 12... cxd4
{[%clk 0:02:49.5]} 13. cxd4 {[%clk 0:02:44.5]} 13... Nxd4 {[%clk 0:02:50.4]} 14.
Nxd4 {[%clk 0:02:45]} 14... Qxd4 {[%clk 0:02:51.3]} 15. Nf3 {[%clk 0:02:45.6]}
15... Qb6 {[%clk 0:02:51.1]} 16. Bg5 {[%clk 0:02:45.8]} 16... Bc5 {[%clk
0:02:46.3]} 17. Bf4 {[%clk 0:02:40.2]} 17... f5 {[%clk 0:02:36.7]} 18. exf6
{[%clk 0:02:37.7]} 18... Nxf6 {[%clk 0:02:36.9]} 19. Be5 {[%clk 0:02:31]} 19...
Bd7 {[%clk 0:02:32.5]} 20. Rad1 {[%clk 0:02:07]} 20... Bc6 {[%clk 0:02:29.6]}
21. Ng5 {[%clk 0:02:02.7]} 21... Ne4 {[%clk 0:02:20.4]} 22. Bxe4 {[%clk
0:01:58.2]} 22... Rxf2 {[%clk 0:01:25.2]} 23. Bxh7+ {[%clk 0:01:52.7]} 23... Kf8
{[%clk 0:01:19.3]} 24. Qh5 {[%clk 0:01:40.2]} 24... Ke7 {[%clk 0:01:06.2]} 25.
Nxe6 {[%clk 0:01:04.8]} 25... Kxe6 {[%clk 0:00:20.4]} 26. Qg4+ {[%clk
0:00:44.8]} 26... Ke7 {[%clk 0:00:12.6]} 27. Qxg7+ {[%clk 0:00:36]} 27... Rf7+
{[%clk 0:00:11.2]} 28. Bd4+ {[%clk 0:00:35.9]} 28... Kd6 {[%clk 0:00:05.6]} 29.
Qg6+ {[%clk 0:00:32.8]} 29... Kc7 {[%clk 0:00:05.9]} 30. Qxf7+ {[%clk
0:00:32.8]} 30... Kb8 {[%clk 0:00:06.8]} 31. Qf8+ {[%clk 0:00:30.5]} 31... Bxf8
{[%clk 0:00:05.1]} 32. Bxb6 {[%clk 0:00:30.6]} 1-0

[Event "Early-Titled-Tuesday-Blitz-April-23-2024"]
[Site "Chess.com"]
[Date "2024.04.23"]
[Round "1"]
[White "2L8IWUN"]
[Black "theoneandonlydaaevik"]
[Result "0-1"]
[WhiteElo "2070"]
[BlackElo "2581"]
[TimeControl "180+1"]
[EndTime "8:06:46 PDT"]
[Termination "theoneandonlydaaevik won by resignation"]

1. d4 {[%clk 0:02:54.4]} 1... Nf6 {[%clk 0:02:58.8]} 2. Nf3 {[%clk 0:02:54.4]}
2... d5 {[%clk 0:02:57.6]} 3. Bf4 {[%clk 0:02:53.7]} 3... c5 {[%clk 0:02:56.2]}
4. e3 {[%clk 0:02:54]} 4... e6 {[%clk 0:02:55.8]} 5. Nbd2 {[%clk 0:02:51]} 5...
Bd6 {[%clk 0:02:56]} 6. Bg3 {[%clk 0:02:46.2]} 6... O-O {[%clk 0:02:55.3]} 7. c3
{[%clk 0:02:45.3]} 7... Qc7 {[%clk 0:02:55.5]} 8. Bd3 {[%clk 0:02:38.3]} 8...
Nbd7 {[%clk 0:02:55.3]} 9. e4 {[%clk 0:02:16.4]} 9... dxe4 {[%clk 0:02:37.2]}
10. Nxe4 {[%clk 0:02:11]} 10... Nxe4 {[%clk 0:02:37]} 11. Bxe4 {[%clk
0:02:11.2]} 11... Nf6 {[%clk 0:02:37.6]} 12. Bd3 {[%clk 0:01:54.3]} 12... h6
{[%clk 0:02:20.7]} 13. dxc5 {[%clk 0:01:48]} 13... Bxg3 {[%clk 0:02:20.2]} 14.
hxg3 {[%clk 0:01:46.8]} 14... Qxc5 {[%clk 0:02:21.1]} 15. O-O {[%clk 0:01:46.5]}
15... b6 {[%clk 0:02:21.2]} 16. Qe2 {[%clk 0:01:43.8]} 16... Bb7 {[%clk
0:02:20.8]} 17. Qe5 {[%clk 0:01:41.7]} 17... Qe7 {[%clk 0:02:00.4]} 18. Rad1
{[%clk 0:01:33.2]} 18... Rfd8 {[%clk 0:01:59.2]} 19. Be2 {[%clk 0:01:08.1]}
19... Bd5 {[%clk 0:01:31.3]} 20. c4 {[%clk 0:00:53]} 20... Bc6 {[%clk
0:01:29.1]} 21. Nd4 {[%clk 0:00:46.3]} 21... Be4 {[%clk 0:01:08.4]} 22. f3
{[%clk 0:00:32.4]} 22... Qc5 {[%clk 0:01:07.4]} 23. Qxc5 {[%clk 0:00:20.6]}
23... bxc5 {[%clk 0:01:08.3]} 24. Nb3 {[%clk 0:00:21.2]} 24... Rxd1 {[%clk
0:01:01.4]} 25. Rxd1 {[%clk 0:00:20.4]} 25... Bc2 {[%clk 0:01:01.9]} 26. Rd2
{[%clk 0:00:15.7]} 26... Bxb3 {[%clk 0:01:02.1]} 27. axb3 {[%clk 0:00:16.6]}
27... Rb8 {[%clk 0:01:02.7]} 28. Rd3 {[%clk 0:00:16.8]} 28... Kf8 {[%clk
0:01:02.4]} 29. g4 {[%clk 0:00:17]} 29... Ke7 {[%clk 0:01:02.9]} 30. Kf2 {[%clk
0:00:17.7]} 30... Nd7 {[%clk 0:01:01.4]} 31. Ke3 {[%clk 0:00:17.8]} 31... Ne5
{[%clk 0:01:01.6]} 32. Rc3 {[%clk 0:00:18.4]} 32... Nc6 {[%clk 0:01:02]} 33. Bd3
{[%clk 0:00:18.5]} 33... Nd4 {[%clk 0:01:02.2]} 34. Bc2 {[%clk 0:00:14]} 34...
Nxc2+ {[%clk 0:01:01.7]} 35. Rxc2 {[%clk 0:00:14.7]} 35... Rxb3+ {[%clk
0:01:02.3]} 36. Kd2 {[%clk 0:00:13.4]} 36... Kd6 {[%clk 0:01:01.5]} 37. Ke2
{[%clk 0:00:11.5]} 37... Ke5 {[%clk 0:01:01.5]} 38. Rd2 {[%clk 0:00:09.6]} 38...
a5 {[%clk 0:00:56.8]} 39. Kf2 {[%clk 0:00:09.5]} 39... Rb4 {[%clk 0:00:54.6]}
40. Rd7 {[%clk 0:00:07.2]} 40... Rxb2+ {[%clk 0:00:54]} 0-1

[Event "Early-Titled-Tuesday-Blitz-April-23-2024"]
[Site "Chess.com"]
[Date "2024.04.23"]
[Round "1"]
[White "amanjazu"]
[Black "michaelq2d5"]
[Result "0-1"]
[WhiteElo "2526"]
[BlackElo "2933"]
[TimeControl "180+1"]
[EndTime "8:06:47 PDT"]
[Termination "michaelq2d5 won by resignation"]

1. g3 {[%clk 0:02:57.9]} 1... d5 {[%clk 0:03:00.4]} 2. Bg2 {[%clk 0:02:58.8]}
2... Nf6 {[%clk 0:03:01.1]} 3. f4 {[%clk 0:02:58.7]} 3... Bf5 {[%clk 0:03:01.8]}
4. Nf3 {[%clk 0:02:58.8]} 4... e6 {[%clk 0:03:02.5]} 5. O-O {[%clk 0:02:59.7]}
5... h6 {[%clk 0:03:03.2]} 6. d3 {[%clk 0:03:00.6]} 6... Be7 {[%clk 0:03:03.6]}
7. Nc3 {[%clk 0:03:01]} 7... O-O {[%clk 0:03:04.2]} 8. Qe1 {[%clk 0:03:01.1]}
8... c5 {[%clk 0:03:01.2]} 9. e4 {[%clk 0:03:00.7]} 9... Bh7 {[%clk 0:03:01.7]}
10. h3 {[%clk 0:03:00.1]} 10... Nc6 {[%clk 0:03:01.9]} 11. Kh2 {[%clk
0:03:00.4]} 11... Rc8 {[%clk 0:03:02.3]} 12. e5 {[%clk 0:02:53.9]} 12... Nd7
{[%clk 0:03:02.2]} 13. g4 {[%clk 0:02:54.4]} 13... Nd4 {[%clk 0:03:02.7]} 14.
Rf2 {[%clk 0:02:52.9]} 14... Nxf3+ {[%clk 0:02:55.9]} 15. Rxf3 {[%clk
0:02:53.8]} 15... c4 {[%clk 0:02:51.8]} 16. d4 {[%clk 0:01:49.6]} 16... Bxc2
{[%clk 0:02:50.6]} 17. f5 {[%clk 0:01:49.9]} 17... Bg5 {[%clk 0:02:50.8]} 18.
Bxg5 {[%clk 0:01:16.8]} 18... Qxg5 {[%clk 0:02:49.8]} 19. Qg3 {[%clk 0:01:13.9]}
19... h5 {[%clk 0:02:31.4]} 20. Raf1 {[%clk 0:00:54.6]} 20... Bd3 {[%clk
0:02:29.2]} 21. R1f2 {[%clk 0:00:49.6]} 21... h4 {[%clk 0:02:08.7]} 22. Qf4
{[%clk 0:00:48.5]} 22... Qxf4+ {[%clk 0:02:09.2]} 23. Rxf4 {[%clk 0:00:49.4]}
23... g5 {[%clk 0:02:08.3]} 24. fxg6 {[%clk 0:00:35.7]} 24... Bxg6 {[%clk
0:01:53.3]} 25. g5 {[%clk 0:00:35.2]} 25... Kg7 {[%clk 0:01:53.6]} 26. Rxh4
{[%clk 0:00:31.1]} 26... Rh8 {[%clk 0:01:52.7]} 27. Rhf4 {[%clk 0:00:31.5]}
27... a6 {[%clk 0:01:45.4]} 28. a4 {[%clk 0:00:30.6]} 28... Rc7 {[%clk
0:01:45.7]} 29. a5 {[%clk 0:00:29.2]} 29... Nb8 {[%clk 0:01:39.5]} 30. h4 {[%clk
0:00:16.8]} 30... Nc6 {[%clk 0:01:37.4]} 31. Kg3 {[%clk 0:00:17.2]} 31... Nxa5
{[%clk 0:01:32.5]} 32. Bf3 {[%clk 0:00:17.7]} 32... Nc6 {[%clk 0:01:31.3]} 33.
Rh2 {[%clk 0:00:17.5]} 33... Bd3 {[%clk 0:01:21.1]} 34. h5 {[%clk 0:00:17.3]}
34... Ne7 {[%clk 0:01:19.6]} 35. Bg4 {[%clk 0:00:13.9]} 35... Nf5+ {[%clk
0:01:15.8]} 36. Bxf5 {[%clk 0:00:13.5]} 36... Bxf5 {[%clk 0:01:14.9]} 37. Nxd5
{[%clk 0:00:13.6]} 37... Rd7 {[%clk 0:01:14]} 38. Nf6 {[%clk 0:00:12.5]} 38...
Rc7 {[%clk 0:01:12.9]} 39. h6+ {[%clk 0:00:10.5]} 39... Kg6 {[%clk 0:01:12.3]}
40. Rh5 {[%clk 0:00:07.6]} 40... c3 {[%clk 0:01:11.1]} 41. h7 {[%clk 0:00:03.2]}
41... cxb2 {[%clk 0:01:06.8]} 42. Rh6+ {[%clk 0:00:03.2]} 42... Kg7 {[%clk
0:01:07.4]} 43. Nh5+ {[%clk 0:00:03.2]} 43... Kf8 {[%clk 0:01:08]} 44. Rf1
{[%clk 0:00:02.5]} 44... b1=Q {[%clk 0:01:05.3]} 0-1

[Event "Early-Titled-Tuesday-Blitz-April-23-2024"]
[Site "Chess.com"]
[Date "2024.04.23"]
[Round "1"]
[White "HajiyevKanan"]
[Black "sterpfi"]
[Result "1-0"]
[WhiteElo "2611"]
[BlackElo "2212"]
[TimeControl "180+1"]
[EndTime "8:06:48 PDT"]
[Termination "HajiyevKanan won by resignation"]

1. d4 {[%clk 0:03:00.9]} 1... d5 {[%clk 0:02:59.7]} 2. Nf3 {[%clk 0:03:00.7]}
2... Nf6 {[%clk 0:02:58.4]} 3. c4 {[%clk 0:03:01.6]} 3... e6 {[%clk 0:02:58.5]}
4. Nc3 {[%clk 0:03:02.3]} 4... a6 {[%clk 0:02:57.2]} 5. cxd5 {[%clk 0:03:01.8]}
5... exd5 {[%clk 0:02:57.4]} 6. Qc2 {[%clk 0:03:02]} 6... Be6 {[%clk 0:02:53.9]}
7. Bg5 {[%clk 0:02:58.8]} 7... Bd6 {[%clk 0:02:52.6]} 8. Ne5 {[%clk 0:02:57.7]}
8... O-O {[%clk 0:02:51.9]} 9. e3 {[%clk 0:02:57.7]} 9... h6 {[%clk 0:02:43.1]}
10. Bh4 {[%clk 0:02:57.2]} 10... Nbd7 {[%clk 0:02:42.3]} 11. f4 {[%clk
0:02:57.5]} 11... Be7 {[%clk 0:02:31.5]} 12. f5 {[%clk 0:02:53.3]} 12... Ne4
{[%clk 0:02:11.6]} 13. Bxe7 {[%clk 0:02:42.2]} 13... Qxe7 {[%clk 0:02:12.5]} 14.
fxe6 {[%clk 0:02:36.6]} 14... Qh4+ {[%clk 0:01:51.2]} 15. g3 {[%clk 0:02:35]}
15... Nxg3 {[%clk 0:01:51.4]} 16. Qf2 {[%clk 0:02:12.9]} 16... Nxe5 {[%clk
0:01:42.4]} 17. Qxg3 {[%clk 0:01:20.1]} 17... Nf3+ {[%clk 0:01:21.7]} 18. Kf2
{[%clk 0:01:14]} 18... fxe6 {[%clk 0:01:13.3]} 19. Qxh4 {[%clk 0:01:10.1]} 19...
Nxh4+ {[%clk 0:01:14.2]} 20. Ke2 {[%clk 0:01:08.1]} 20... g5 {[%clk 0:00:53.5]}
21. Bh3 {[%clk 0:01:07]} 21... Rf6 {[%clk 0:00:48.3]} 22. Raf1 {[%clk
0:01:06.2]} 22... Raf8 {[%clk 0:00:49]} 23. Rxf6 {[%clk 0:01:06.2]} 23... Rxf6
{[%clk 0:00:49.9]} 24. Bg4 {[%clk 0:01:03.4]} 24... Kf7 {[%clk 0:00:26.2]} 25.
Nd1 {[%clk 0:00:54.5]} 25... Ke7 {[%clk 0:00:14.7]} 26. Nf2 {[%clk 0:00:54.2]}
26... Kd6 {[%clk 0:00:14.7]} 27. Nd3 {[%clk 0:00:54.2]} 27... b6 {[%clk
0:00:13.2]} 28. b4 {[%clk 0:00:53.5]} 28... Ng6 {[%clk 0:00:12.9]} 29. a4 {[%clk
0:00:47.4]} 29... e5 {[%clk 0:00:13]} 30. Bh5 {[%clk 0:00:34.3]} 30... exd4
{[%clk 0:00:10.1]} 31. Bxg6 {[%clk 0:00:33.4]} 31... Rxg6 {[%clk 0:00:11]} 32.
exd4 {[%clk 0:00:34]} 32... Rf6 {[%clk 0:00:09.7]} 33. Rc1 {[%clk 0:00:32.4]}
33... Rf4 {[%clk 0:00:07.1]} 34. Nxf4 {[%clk 0:00:31.8]} 34... gxf4 {[%clk
0:00:08]} 35. Kf3 {[%clk 0:00:32.3]} 1-0